bitfinex/quotes_SOLUSD_20250831
["timestamp","ask_amount","ask_price","bid_price","bid_amount"]
[1756655354259,4.51535527,204.74,204.73,0.67]
[1756655354860,4.51535527,204.74,204.73,5.554482]
[1756655355038,26.82811705,204.75,204.74,13.59559401]
[1756655355361,25.64,204.83,204.74,18.78094928]
[1756655355541,4.51535527,204.8,204.74,18.11094927]
[1756655355746,4.51535527,204.8,204.75,14.26559401]
[1756655355948,4.51535527,204.81,204.76,4.51535527]
[1756655356150,4.51535527,204.81,204.77,0.67]
[1756655356863,38.68,204.82,204.78,4.88328938]
[1756655357060,38.68,204.82,204.79,0.67]
[1756655357361,4.51535527,204.8,204.74,34.0]
[1756655357559,4.51535527,204.79,204.74,38.51535527]
[1756655357738,4.51535527,204.79,204.75,0.67]
[1756655358145,4.51535527,204.79,204.76,14.679617]
[1756655358350,4.51535527,204.79,204.77,0.67]
[1756655359045,38.68,204.82,204.77,0.67]
[1756655359250,4.51535527,204.79,204.77,0.67]
[1756655359959,38.68,204.82,204.78,0.67]
[1756655360265,4.51535527,204.79,204.75,19.56430593]
[1756655360642,4.51535527,204.79,204.76,0.67]
[1756655360952,4.51535527,204.79,204.76,5.55372149]
[1756655361150,4.51535527,204.79,204.77,0.67]
[1756655361462,4.51535527,204.8,204.77,0.67]
[1756655361833,0.06,204.79,204.77,0.67]
[1756655362038,4.57535527,204.79,204.76,19.56405649]
[1756655362236,0.06,204.79,204.78,0.67]
[1756655362476,4.57535527,204.79,204.78,0.67]
[1756655362648,4.57535527,204.79,204.76,0.67]
[1756655362854,4.51535527,204.78,204.77,0.67]
[1756655363441,0.06,204.79,204.77,0.67]
[1756655364664,0.06,204.79,204.78,4.51535527]
[1756655364856,0.06,204.79,204.78,24.07682565]
[1756655365043,0.06,204.79,204.78,24.74682565]
[1756655365374,0.06,204.79,204.78,38.34241966]
[1756655368145,0.06,204.79,204.78,15.348181]
[1756655368370,0.06,204.79,204.75,0.03]
[1756655368371,4.57535527,204.79,204.75,0.03]
[1756655368674,4.51535527,204.76,204.75,0.03]
[1756655368852,4.51535527,204.76,204.75,0.7]
[1756655369195,4.51535527,204.76,204.75,0.03]
[1756655369468,5.18535527,204.76,204.75,0.03]
[1756655369663,4.51535527,204.76,204.75,0.03]
[1756655370043,5.18535527,204.76,204.75,0.03]
[1756655370267,4.51535527,204.76,204.75,0.03]
[1756655373581,5.21535527,204.76,204.75,0.03]
[1756655375472,4.51535527,204.76,204.75,0.03]
[1756655380769,38.7,204.79,204.75,0.74]
[1756655380981,64.7,204.79,204.75,0.03]
[1756655381186,64.7,204.79,204.76,0.71]
[1756655381572,64.7,204.79,204.75,0.03]
[1756655381773,64.7,204.79,204.76,0.71]
[1756655381774,0.06,204.79,204.76,0.71]
[1756655381976,0.06,204.79,204.75,0.03]
[1756655381977,0.06,204.79,204.77,0.71]
[1756655382182,0.06,204.79,204.75,0.03]
[1756655382367,0.06,204.79,204.76,0.71]
[1756655382570,4.51535527,204.78,204.75,0.03]
[1756655382773,4.51535527,204.78,204.76,0.71]
[1756655383076,4.51535527,204.78,204.77,0.71]
[1756655384287,0.06,204.79,204.77,5.59350664]
[1756655384587,4.51535527,204.78,204.77,5.59350664]
[1756655384790,4.51535527,204.78,204.75,5.255355]
[1756655385087,4.51535527,204.77,204.76,0.71]
[1756655385986,4.51535527,204.77,204.75,9.429222]
[1756655386292,4.51535527,204.77,204.76,0.71]
[1756655387480,4.51535527,204.77,204.75,0.03]
[1756655387795,4.51535527,204.77,204.75,4.91398368]
[1756655387992,4.51535527,204.77,204.76,0.71]
[1756655389399,4.57535527,204.79,204.76,5.59376636]
[1756655389578,0.06,204.79,204.78,4.51535527]
[1756655389773,0.06,204.79,204.78,5.22535527]
[1756655390183,0.06,204.79,204.78,18.82094928]
[1756655390593,0.06,204.79,204.78,23.70423866]
[1756655391712,0.06,204.79,204.78,28.27959366]
[1756655392503,0.06,204.79,204.78,57.76423839]
[1756655392798,0.06,204.79,204.78,62.27959366]
[1756655394101,0.06,204.82,204.78,113.08781711]
[1756655394405,0.06,204.82,204.81,4.51535527]
[1756655394708,0.06,204.82,204.81,4.88257409]
[1756655394908,0.06,204.82,204.81,5.59257409]
[1756655395083,0.06,204.82,204.81,10.10792936]
[1756655395778,0.06,204.82,204.81,5.59257409]
[1756655397007,0.06,204.82,204.81,10.10792909]
[1756655398306,0.06,204.82,204.81,4.515355]
[1756655398603,0.06,204.82,204.79,5.59301075]
[1756655398799,0.06,204.82,204.8,1.9569]
[1756655399403,4.51535527,204.81,204.8,1.9569]
[1756655399611,4.51535527,204.81,204.76,14.30559401]
[1756655399612,4.51535527,204.81,204.78,38.6]
[1756655399777,0.06,204.82,204.78,43.115355]
[1756655399982,4.57535527,204.82,204.78,43.825355]
[1756655400183,0.76,204.82,204.78,5.225355]
[1756655400494,4.51535527,204.79,204.76,38.6]
[1756655400701,4.51535527,204.79,204.76,39.31]
[1756655401209,4.51535527,204.79,204.76,0.71]
[1756655401698,4.51535527,204.79,204.76,5.59368502]
[1756655401903,0.7,204.81,204.76,5.59368502]
[1756655402209,0.06,204.82,204.76,5.59368502]
[1756655402210,4.57535527,204.82,204.77,5.21535527]
[1756655402408,4.57535527,204.82,204.78,0.7]
[1756655402707,0.06,204.82,204.79,0.7]
[1756655402879,4.51535527,204.8,204.77,38.58]
[1756655403096,4.51535527,204.79,204.77,38.58]
[1756655403295,0.67,204.8,204.77,0.7]
[1756655403296,4.51535527,204.8,204.77,0.7]
[1756655403608,4.51535527,204.8,204.76,4.88367348]
[1756655403812,0.73,204.82,204.77,0.7]
[1756655403995,4.51535527,204.81,204.78,0.7]
[1756655404202,4.57535527,204.82,204.76,22.99462276]
[1756655404502,4.57535527,204.82,204.79,0.7]
[1756655404822,5.18535527,204.81,204.76,22.99462276]
[1756655405019,4.51535527,204.81,204.77,0.7]
[1756655405221,0.06,204.82,204.78,0.7]
[1756655405222,4.57535527,204.82,204.78,0.7]
[1756655405406,4.57535527,204.82,204.79,0.7]
[1756655407495,4.57535527,204.82,204.78,4.88321398]
[1756655407697,4.57535527,204.82,204.78,5.58321398]
[1756655408100,4.51535527,204.8,204.75,38.61]
[1756655408318,4.51535527,204.79,204.76,0.7]
[1756655408521,0.67,204.8,204.76,0.7]
[1756655408725,4.51535527,204.79,204.76,0.7]
[1756655409106,4.51535527,204.81,204.77,0.7]
[1756655409418,0.06,204.82,204.79,4.51535527]
[1756655409623,0.06,204.82,204.8,0.7]
[1756655409813,0.06,204.82,204.79,5.21535527]
[1756655410011,0.06,204.82,204.79,5.58290102]
[1756655410625,0.06,204.82,204.8,4.51535527]
[1756655410804,0.06,204.82,204.81,18.11094928]
[1756655411005,0.06,204.82,204.81,23.38630428]
[1756655412014,0.06,204.82,204.81,28.26887837]
[1756655415736,0.06,204.84,204.83,18.11094928]
[1756655415940,0.06,204.84,204.83,56.67094928]
[1756655416102,0.06,204.84,204.83,57.37094928]
[1756655416302,0.06,204.84,204.83,59.32727428]
[1756655417121,0.06,204.84,204.83,98.20937162]
[1756655417713,0.06,204.84,204.83,93.69401635]
[1756655417909,0.06,204.84,204.83,98.20937162]
[1756655418412,0.06,204.84,204.83,64.20937162]
[1756655418610,0.06,204.84,204.83,46.09842234]
[1756655419132,0.06,204.84,204.83,64.20937162]
[1756655420809,0.06,204.85,204.83,64.20937162]
[1756655421010,0.06,204.85,204.84,44.81094928]
[1756655421216,0.06,204.85,204.84,49.69280829]
[1756655421414,0.06,204.85,204.84,51.64884629]
[1756655421620,0.06,204.85,204.84,85.64884629]
[1756655423534,0.06,204.86,204.85,39.59559401]
[1756655423843,0.06,204.91,204.88,18.11094928]
[1756655424136,0.06,204.91,204.88,56.65094928]
[1756655424340,0.73,204.91,204.86,13.59559401]
[1756655424539,4.57535527,204.91,204.88,40.495943]
[1756655424832,0.73,204.91,204.88,40.495943]
[1756655427541,0.73,204.89,204.88,38.54]
[1756655428525,0.73,204.89,204.86,4.515356]
[1756655428738,0.67,204.88,204.87,38.52]
[1756655428935,4.57535527,204.89,204.87,38.52]
[1756655429137,0.06,204.89,204.87,38.52]
[1756655429330,0.73,204.89,204.87,38.52]
[1756655429947,0.06,204.89,204.87,43.40105233]
[1756655430640,0.06,204.89,204.87,48.6164076]
[1756655430824,0.06,204.89,204.88,0.7]
[1756655431031,0.06,204.89,204.87,47.9164076]
[1756655431226,0.06,204.89,204.87,43.40105233]
[1756655432248,0.06,204.89,204.87,47.91640833]
[1756655432625,0.06,204.89,204.87,47.9164076]
[1756655432831,0.06,204.89,204.87,43.40105233]
[1756655433933,0.06,204.89,204.87,47.9164076]
[1756655434328,0.06,204.89,204.88,9.79071127]
[1756655435045,0.06,204.89,204.88,18.87095001]
[1756655435222,0.06,204.89,204.88,23.38630528]
[1756655436632,0.06,204.89,204.88,62.26721117]
[1756655437541,0.06,204.89,204.88,100.78721117]
[1756655439043,0.06,204.89,204.88,66.06721117]
[1756655439244,0.06,204.89,204.88,66.76721117]
[1756655442056,0.06,204.89,204.88,100.76721117]
[1756655443852,0.06,204.91,204.89,13.59559401]
[1756655444026,0.06,204.91,204.9,69.01535527]
[1756655444229,0.06,204.91,204.9,83.31094928]
[1756655444838,0.06,204.91,204.9,88.19137875]
[1756655445036,0.06,204.91,204.9,90.14684275]
[1756655446164,0.06,204.91,204.9,85.63148748]
[1756655446368,0.06,204.91,204.9,90.14684275]
[1756655448051,0.06,204.91,204.9,58.91148748]
[1756655448255,0.06,204.91,204.9,20.43148748]
[1756655448469,0.76,204.91,204.9,54.03105801]
[1756655449143,0.76,204.91,204.9,58.91148748]
[1756655449659,0.06,204.91,204.9,63.42684275]
[1756655451664,0.06,204.91,204.9,58.91148748]
[1756655451963,0.06,204.91,204.9,63.42684275]
[1756655453357,0.06,204.91,204.9,1.955464]
[1756655453358,0.76,204.91,204.9,1.955464]
[1756655453548,5.27535527,204.91,204.9,38.48]
[1756655454571,5.27535527,204.91,204.87,9.39646824]
[1756655454872,4.51535527,204.88,204.87,38.46]
[1756655455172,5.21535527,204.88,204.86,38.51]
[1756655455369,4.94021306,204.91,204.86,38.51]
[1756655455560,5.21535527,204.88,204.86,38.51]
[1756655455874,5.21535527,204.87,204.86,0.03]
[1756655456367,0.7,204.87,204.86,0.03]
[1756655457364,5.21535527,204.87,204.86,0.03]
[1756655458667,10.09649941,204.87,204.86,0.03]
[1756655460466,13.37979103,204.87,204.86,0.03]
[1756655460776,13.38001901,204.87,204.86,0.03]
[1756655460978,13.38031573,204.87,204.86,0.03]
[1756655461672,26.0,204.84,204.83,0.03]
[1756655461860,33.79917159,204.84,204.83,0.03]
[1756655462171,34.46917159,204.84,204.83,0.03]
[1756655463268,34.4639965,204.84,204.83,0.03]
[1756655463462,52.78721707,204.84,204.73,4.7634938]
[1756655463668,4.51535527,204.76,204.73,4.7634938]
[1756655464057,4.51535527,204.78,204.74,0.71]
[1756655464264,39.13,204.83,204.75,0.71]
[1756655464478,4.51535527,204.81,204.75,5.22535527]
[1756655464774,4.51535527,204.81,204.76,0.71]
[1756655464948,4.51535527,204.82,204.77,0.71]
[1756655465148,4.88163687,204.85,204.8,4.51535527]
[1756655465149,4.51535527,204.85,204.8,4.51535527]
[1756655465374,4.51535527,204.86,204.81,0.71]
[1756655465572,0.67,204.87,204.82,0.71]
[1756655465750,4.51535527,204.86,204.82,0.71]
[1756655466181,5.18535527,204.87,204.82,4.51535527]
[1756655466365,4.51535527,204.88,204.83,0.71]
[1756655467072,0.67,204.9,204.82,4.51535527]
[1756655467073,26.0,204.89,204.82,4.51535527]
[1756655467376,4.51535527,204.89,204.84,0.71]
[1756655467676,4.51535527,204.87,204.82,5.59215378]
[1756655467978,5.18535527,204.88,204.83,0.74]
[1756655468166,4.51535527,204.87,204.83,0.74]
[1756655469856,30.51535527,204.89,204.84,0.71]
[1756655470177,4.51535527,204.89,204.85,0.71]
[1756655470749,5.18535527,204.89,204.85,0.71]
[1756655470962,5.18535527,204.89,204.84,9.39705703]
[1756655471255,4.51535527,204.88,204.83,9.42751]
[1756655471470,5.18535527,204.87,204.83,9.42751]
[1756655471758,4.51535527,204.87,204.83,10.13751]
[1756655471974,4.51535527,204.87,204.83,0.74]
[1756655472755,4.51535527,204.87,204.83,0.03]
[1756655472962,0.67,204.86,204.83,0.03]
[1756655473266,4.51535527,204.84,204.83,0.03]
[1756655474078,4.51535527,204.85,204.83,0.03]
[1756655474264,4.51535527,204.87,204.83,0.74]
[1756655474467,30.51535527,204.87,204.83,0.03]
[1756655474661,31.18535527,204.87,204.83,0.03]
[1756655474878,5.18535527,204.86,204.83,0.03]
[1756655475379,4.51535527,204.86,204.83,0.03]
[1756655475561,26.0,204.87,204.84,0.71]
[1756655475882,31.18535527,204.87,204.83,0.03]
[1756655476182,30.51535527,204.87,204.83,0.74]
[1756655476350,31.18535527,204.87,204.83,0.03]
[1756655476550,4.51535527,204.86,204.83,0.03]
[1756655476751,4.51535527,204.86,204.83,0.74]
[1756655477282,30.51535527,204.89,204.84,0.71]
[1756655477581,30.51535527,204.89,204.85,0.71]
[1756655477778,5.18535527,204.89,204.83,15.01970604]
[1756655477956,4.51535527,204.88,204.83,15.01970604]
[1756655478167,5.18535527,204.89,204.84,0.71]
[1756655478565,4.51535527,204.88,204.84,0.71]
[1756655478978,5.18535527,204.88,204.84,0.71]
[1756655479894,30.51535527,204.89,204.85,0.71]
[1756655480066,4.51535527,204.86,204.84,4.88179995]
[1756655480389,4.51535527,204.86,204.84,5.59179995]
[1756655481807,4.51535527,204.87,204.85,0.71]
[1756655481981,4.51535527,204.89,204.85,0.71]
[1756655482501,4.51535527,204.9,204.85,0.71]
[1756655482707,4.51535527,204.89,204.86,0.71]
[1756655483003,4.51535527,204.9,204.87,0.71]
[1756655483166,4.51535527,204.9,204.84,9.39715522]
[1756655483490,4.57535527,204.91,204.86,4.8813824]
[1756655483688,4.57535527,204.91,204.87,0.71]
[1756655483898,4.57535527,204.91,204.88,0.71]
[1756655484198,0.06,204.91,204.89,13.59559401]
[1756655484493,0.06,204.91,204.9,0.71]
[1756655485397,0.06,204.91,204.9,5.59042947]
[1756655485773,0.06,204.91,204.9,23.70137875]
[1756655490481,0.06,204.91,204.9,19.18602348]
[1756655490686,0.06,204.91,204.9,23.70137875]
[1756655491771,0.06,204.91,204.9,57.70137875]
[1756655492208,0.06,204.91,204.89,4.88064227]
[1756655492376,0.71,204.91,204.89,13.59559401]
[1756655492887,0.06,204.91,204.89,18.4762463]
[1756655493199,0.06,204.91,204.89,19.1362463]
[1756655493581,0.06,204.91,204.9,0.66]
[1756655494988,0.06,204.91,204.9,5.54042947]
[1756655495891,0.06,204.91,204.9,4.88042947]
[1756655496189,0.06,204.91,204.9,5.54042947]
[1756655496832,0.06,204.91,204.9,19.13602348]
[1756655496980,0.06,204.91,204.9,23.65137875]
[1756655498691,0.06,204.91,204.9,57.65137875]
[1756655498906,0.06,204.91,204.9,53.13602348]
[1756655499208,0.06,204.91,204.9,90.87602348]
[1756655499388,0.06,204.91,204.9,52.47602348]
[1756655499585,0.06,204.91,204.9,56.87602348]
[1756655500487,0.06,204.91,204.9,62.05137875]
[1756655500884,0.06,204.91,204.9,57.53602348]
[1756655502010,0.06,204.91,204.9,56.87602348]
[1756655504194,0.71,204.91,204.9,56.85602348]
[1756655504523,0.71,204.91,204.9,38.38]
[1756655505414,0.71,204.91,204.9,43.26042947]
[1756655505616,4.57535527,204.91,204.85,4.515356]
[1756655505817,4.51535527,204.87,204.85,38.38]
[1756655505988,4.51535527,204.86,204.85,38.38]
[1756655506187,0.65,204.86,204.85,38.38]
[1756655506404,4.94019341,204.91,204.85,38.38]
[1756655506405,4.51535527,204.87,204.85,38.38]
[1756655506613,5.16535527,204.87,204.85,38.38]
[1756655507086,0.06,204.91,204.85,38.38]
[1756655507284,4.51535527,204.87,204.85,38.38]
[1756655507490,0.65,204.89,204.85,43.26156934]
[1756655507691,4.51535527,204.87,204.85,43.26156934]
[1756655508316,0.65,204.87,204.85,43.26156934]
[1756655508616,5.16535527,204.87,204.85,38.38]
[1756655508809,4.51535527,204.87,204.85,38.38]
[1756655508991,4.51535527,204.88,204.85,43.26152213]
[1756655509409,5.16535527,204.88,204.85,43.26152213]
[1756655509801,4.51535527,204.88,204.85,43.26152213]
[1756655510003,4.51535527,204.87,204.85,38.38]
[1756655510722,5.16535527,204.86,204.85,38.38]
[1756655511104,5.16535527,204.86,204.83,0.03]
[1756655511308,4.51535527,204.84,204.83,0.03]
[1756655514714,5.16535527,204.85,204.83,0.03]
[1756655516631,4.51535527,204.84,204.83,0.03]
[1756655519826,0.65,204.85,204.83,0.03]
[1756655520130,0.06,204.87,204.83,0.03]
[1756655520131,4.51535527,204.84,204.83,0.03]
[1756655520528,4.51535527,204.85,204.83,0.69]
[1756655520731,0.06,204.87,204.84,38.36]
[1756655521032,0.06,204.87,204.85,10.05697596]
[1756655521328,0.06,204.87,204.86,38.36]
[1756655521716,5.27535527,204.87,204.83,38.91200311]
[1756655521921,4.51535527,204.85,204.84,38.36]
[1756655522229,0.76,204.87,204.84,38.36]
[1756655522436,4.51535527,204.85,204.84,38.36]
[1756655522934,4.51535527,204.85,204.83,0.03]
[1756655523144,4.51535527,204.84,204.83,0.03]
[1756655523529,5.21535527,204.84,204.83,0.03]
[1756655523916,9.73071054,204.84,204.83,0.03]
[1756655524439,26.0,204.81,204.8,0.03]
[1756655524624,30.51535527,204.81,204.8,0.03]
[1756655524821,5.58257409,204.81,204.8,0.03]
[1756655525119,10.09792936,204.81,204.8,0.03]
[1756655526730,5.58257409,204.81,204.8,0.03]
[1756655526918,2.657091,204.86,204.8,0.7]
[1756655527109,4.51535527,204.81,204.8,0.03]
[1756655528143,5.21535527,204.81,204.8,0.03]
[1756655528349,4.51535527,204.81,204.8,0.03]
[1756655529824,5.21535527,204.81,204.8,0.03]
[1756655531249,10.09792936,204.81,204.8,0.03]
[1756655532531,4.51535527,204.81,204.8,0.03]
[1756655532732,30.51535527,204.81,204.8,0.03]
[1756655533343,31.21535527,204.81,204.8,0.03]
[1756655535539,36.09792936,204.81,204.8,0.03]
[1756655538247,30.51535527,204.81,204.8,0.03]
[1756655538443,35.39792936,204.81,204.8,0.03]
[1756655538853,36.09792936,204.81,204.8,0.03]
[1756655539553,38.05549936,204.81,204.8,0.03]
[1756655540262,76.41549936,204.81,204.8,0.03]
[1756655540439,74.45792936,204.81,204.8,0.03]
[1756655543655,74.45792936,204.81,204.78,0.03]
[1756655543962,74.45792936,204.81,204.74,0.03]
[1756655543963,26.0,204.77,204.74,0.03]
[1756655544143,4.51535527,204.75,204.74,0.03]
[1756655544857,36.09936015,204.75,204.74,0.03]
[1756655546637,35.39936015,204.75,204.74,0.03]
[1756655547345,36.09936015,204.75,204.74,0.03]
[1756655547548,10.09936015,204.75,204.74,0.03]
[1756655550372,26.0,204.73,204.72,0.03]
[1756655550547,73.39071054,204.73,204.72,0.03]
[1756655550880,78.97519254,204.73,204.72,0.03]
[1756655551055,80.93362454,204.73,204.72,0.03]
[1756655551647,71.902914,204.73,204.72,0.03]
[1756655551851,76.41826927,204.73,204.72,0.03]
[1756655552561,80.93362454,204.73,204.72,0.03]
[1756655553259,26.0,204.7,204.69,0.03]
[1756655553464,68.85535527,204.7,204.69,0.03]
[1756655553667,69.52535527,204.7,204.68,0.03]
[1756655553841,5.18535527,204.69,204.68,0.03]
[1756655554045,43.52535527,204.69,204.68,0.03]
[1756655555460,48.43079178,204.69,204.68,0.03]
[1756655555659,50.38970378,204.69,204.68,0.03]
[1756655555865,26.0,204.67,204.66,0.03]
[1756655556169,68.85535527,204.67,204.66,0.03]
[1756655556581,71.48445927,204.67,204.66,0.03]
[1756655557575,76.37037318,204.67,204.66,0.03]
[1756655558371,89.96596719,204.67,204.66,0.03]
[1756655558564,4.51535527,204.65,204.63,0.03]
[1756655558772,42.87535527,204.65,204.63,0.03]
[1756655558973,43.54535527,204.65,204.63,0.03]
[1756655559276,45.50465027,204.65,204.63,0.03]
[1756655559480,1.959295,204.65,204.63,0.03]
[1756655559692,49.72104166,204.65,204.64,0.71]
[1756655559855,47.76174666,204.65,204.64,0.71]
[1756655560178,9.40174666,204.65,204.64,0.71]
[1756655560374,47.74174666,204.65,204.64,0.71]
[1756655561077,42.85535527,204.65,204.64,0.71]
[1756655561755,4.51535527,204.68,204.64,0.71]
[1756655561957,4.51535527,204.71,204.65,4.51535527]
[1756655562179,4.51535527,204.72,204.66,0.68]
[1756655562367,26.0,204.7,204.66,5.19535527]
[1756655562555,26.0,204.7,204.67,0.68]
[1756655562976,26.0,204.7,204.67,5.56576979]
[1756655563203,26.0,204.7,204.68,0.68]
[1756655563395,4.51535527,204.71,204.68,0.68]
[1756655563903,26.0,204.7,204.68,0.68]
[1756655565005,30.51535527,204.7,204.69,0.68]
[1756655566893,26.0,204.7,204.69,0.68]
[1756655567287,4.51535527,204.72,204.69,0.68]
[1756655567904,4.51535527,204.72,204.69,5.56543462]
[1756655568092,4.51535527,204.72,204.7,0.68]
[1756655568401,4.51535527,204.72,204.71,0.68]
[1756655568990,4.51535527,204.74,204.71,0.68]
[1756655569197,38.34,204.76,204.71,0.68]
[1756655569499,4.51535527,204.74,204.71,0.68]
[1756655569683,38.34,204.76,204.71,0.68]
[1756655569890,4.51535527,204.74,204.71,0.68]
[1756655570606,4.51535527,204.75,204.71,5.56495687]
[1756655570909,26.0,204.77,204.71,5.56495687]
[1756655570910,4.51535527,204.77,204.72,0.68]
[1756655571894,4.51535527,204.75,204.72,0.68]
[1756655572193,4.51535527,204.75,204.73,0.68]
[1756655572701,4.51535527,204.75,204.74,0.68]
[1756655573306,4.57535527,204.75,204.74,0.68]
[1756655573688,0.06,204.75,204.74,0.68]
[1756655573889,4.57535527,204.75,204.74,0.68]
[1756655574389,4.57535527,204.75,204.67,9.400312]
[1756655574588,4.57535527,204.75,204.71,0.68]
[1756655574589,4.51535527,204.74,204.71,0.68]
[1756655574787,0.06,204.75,204.71,26.68]
[1756655574992,0.06,204.75,204.72,5.19535527]
[1756655575413,0.06,204.75,204.73,0.68]
[1756655575600,0.06,204.75,204.74,9.3995987]
[1756655576091,0.06,204.75,204.74,10.0795987]
[1756655578207,0.06,204.75,204.74,23.67519271]
[1756655578602,0.06,204.75,204.74,25.63237971]
[1756655578808,0.06,204.75,204.74,23.67519271]
[1756655580617,0.06,204.75,204.74,19.15983744]
[1756655580802,0.06,204.75,204.74,23.67519271]
[1756655582717,0.06,204.75,204.74,61.99519271]
[1756655583503,0.06,204.75,204.74,57.47983744]
[1756655583709,0.06,204.75,204.74,61.99519271]
[1756655584520,0.06,204.75,204.74,95.99519271]
[1756655586112,0.06,204.75,204.74,57.67519271]
[1756655586518,0.06,204.75,204.74,95.97519271]
[1756655586712,0.06,204.75,204.74,57.67519271]
[1756655586938,0.06,204.75,204.74,95.97519271]
[1756655587129,0.06,204.75,204.74,43.86424343]
[1756655587299,0.06,204.75,204.74,43.18424343]
[1756655587929,0.06,204.75,204.71,4.88495921]
[1756655587930,5.28535527,204.75,204.71,4.88495921]
[1756655588236,4.57535527,204.75,204.72,43.90468497]
[1756655588408,4.51535527,204.74,204.7,4.88496092]
[1756655588615,4.51535527,204.74,204.72,38.3]
[1756655589937,0.06,204.75,204.72,39.02]
[1756655590103,4.51535527,204.74,204.72,38.3]
[1756655590304,4.51535527,204.74,204.72,43.18468316]
[1756655590717,4.51535527,204.74,204.7,4.88496448]
[1756655590928,4.51535527,204.72,204.68,5.6054584]
[1756655591111,4.51535527,204.71,204.69,38.3]
[1756655592027,4.51535527,204.71,204.69,39.02]
[1756655592230,4.51535527,204.73,204.7,0.72]
[1756655592413,4.51535527,204.73,204.71,5.60495921]
[1756655592607,4.51535527,204.73,204.68,4.51535527]
[1756655592608,4.51535527,204.73,204.68,18.48126921]
[1756655592930,4.51535527,204.7,204.69,38.3]
[1756655593515,4.51535527,204.71,204.69,38.3]
[1756655593917,4.51535527,204.71,204.69,43.18540026]
[1756655595037,4.51535527,204.7,204.69,43.18540026]
[1756655595639,4.51535527,204.7,204.69,38.3]
[1756655595821,4.51535527,204.71,204.69,38.3]
[1756655598241,4.51535527,204.7,204.65,5.63620662]
[1756655598441,4.51535527,204.67,204.66,38.28]
[1756655599334,4.51535527,204.68,204.66,38.28]
[1756655599534,5.22535527,204.68,204.66,38.28]
[1756655600223,4.51535527,204.67,204.65,38.31]
[1756655601235,4.51535527,204.66,204.65,38.31]
[1756655601838,4.51535527,204.66,204.65,0.03]
[1756655602447,0.71,204.71,204.65,5.63637653]
[1756655602646,4.51535527,204.69,204.65,5.63637653]
[1756655603831,4.51535527,204.68,204.65,0.75]
[1756655604634,4.51535527,204.67,204.65,0.03]
[1756655606653,4.51535527,204.68,204.65,0.75]
[1756655606948,4.51535527,204.69,204.66,0.72]
[1756655607126,4.51535527,204.69,204.67,0.72]
[1756655607465,4.51535527,204.69,204.67,5.60584758]
[1756655607759,0.71,204.72,204.67,4.88584758]
[1756655607760,4.51535527,204.7,204.67,4.88584758]
[1756655607925,4.51535527,204.71,204.68,0.72]
[1756655608121,4.51535527,204.71,204.69,0.72]
[1756655608347,4.51535527,204.71,204.67,43.88584758]
[1756655608847,5.22535527,204.71,204.67,43.88584758]
[1756655609143,4.51535527,204.7,204.67,43.88584758]
[1756655611440,4.57535527,204.71,204.67,43.88584758]
[1756655611641,4.51535527,204.68,204.65,43.19637608]
[1756655612157,4.51535527,204.68,204.65,43.87637608]
[1756655612454,4.51535527,204.68,204.65,43.19637608]
[1756655612657,4.51535527,204.68,204.66,0.68]
[1756655613159,4.51535527,204.68,204.65,43.19637608]
[1756655613450,4.51535527,204.68,204.65,43.87637608]
[1756655615641,4.51535527,204.67,204.65,43.87637608]
[1756655616635,4.51535527,204.67,204.65,38.99]
[1756655617338,4.51535527,204.68,204.65,38.99]
[1756655618954,4.51535527,204.67,204.65,38.99]